Cogmind - Beta 14 X2 @@@ ROGUE MODE // 2024.08.03 @ 16:56:27 Player: Minty Result: Destroyed by B-75 Beast with Magnetic Acceleration Cannon Performance ------------- Evolutions (3) 1500 Regions Visited (5) 1000 Robots Destroyed (136) 680 Value Destroyed (4254) 4254 Prototype IDs (13) 260 Alien Tech Used (0) 0 Bonus (122) 122 TOTAL SCORE: 7816 Bonus ------- High Alert Combat Kills 122 Cogmind --------- Core Integrity 0/700 Matter 151/300 Energy 100/100 System Corruption 18% Temperature Cool (0) Movement Core (450) Ox8 Location -7/Lower Caves Parts ------- > --- POWER (1) -------- (None) > --- PROPULSION (2) --- (None) > --- UTILITY (7) ------ Large Storage Unit Transport Network Coupler Improved Targeting Computer Improved Melee Analysis Suite Core Analyzer Hacking Suite System Shield > --- WEAPON (3) ------- Rocket Array > --- INVENTORY (15) --- Cooling System Medium Matter Pod (100) Transmission Jammer Improved Power Shielding Improved Utility Shielding Improved Weapon Shielding Improved Medium Armor Plating Layered Light Armor Plating System Shield Long-range Tractor Beam Heavy Neutron Cannon Heavy Neutron Cannon Rocket Array Impact Mace Peak State ------------ > --- POWER ------------ Enhanced Fission Core > --- PROPULSION ------- Medium Treads Medium Treads > --- UTILITY ---------- Large Storage Unit Transport Network Coupler Improved Targeting Computer Core Analyzer Hacking Suite Hacking Suite System Shield > --- WEAPON ----------- Precision Assault Rifle Precision Assault Rifle Precision Assault Rifle > --- INVENTORY -------- Cooling System Medium Matter Pod Transmission Jammer Improved Power Shielding Improved Utility Shielding Improved Weapon Shielding Improved Medium Armor Plating Layered Light Armor Plating System Shield Long-range Tractor Beam Heavy Neutron Cannon Heavy Neutron Cannon Rocket Array Rocket Array Impact Mace [Rating: 53] Favorites ----------- Power Deuterium Engine Engine Deuterium Engine Power Core Enhanced Fission Core Propulsion Light Treads Treads Light Treads Leg Aluminum Leg Wheel Armored Wheel Utility Hacking Suite Device Cooling System Storage Large Storage Unit Processor Core Analyzer Hackware Hacking Suite Protection Utility Shielding Weapon Improved Medium Laser Energy Gun Improved Medium Laser Energy Cannon Heavy Neutron Cannon Ballistic Gun Autogun Launcher Rocket Array Impact Weapon Impact Mace Build | -11 -10 -9 -8 -7 -7 ------- Run | Yrd Mat Mat Mat Fac Low Slots Evolved 6 | . . 2 2 2 . Power . | . . . . . . Propulsion . | . . . . . . Utility 5 | . . 1 2 2 . Weapon 1 | . . 1 . . . Parts Attached 126 | . 7 36 21 51 11 Power 17 | . 2 4 2 9 . Engine 14 | . 2 4 2 6 . Core 3 | . . . . 3 . Reactor . | . . . . . . Propulsion 26 | . 2 13 3 7 1 Treads 17 | . . 7 3 7 . Leg 4 | . . 3 . . 1 Wheel 5 | . 2 3 . . . Hover . | . . . . . . Flight . | . . . . . . Utility 31 | . 3 9 7 11 1 Device 10 | . 1 4 1 4 . Storage 3 | . 1 1 1 . . Processor 6 | . 1 . 1 3 1 Hackware 4 | . . 1 2 1 . Protection 8 | . . 3 2 3 . Artifact . | . . . . . . Weapon 52 | . . 10 9 24 9 Energy Gun 21 | . . 6 9 6 . Energy Cannon 1 | . . . . 1 . Ballistic Gun 14 | . . 4 . 10 . Ballistic Cannon . | . . . . . . Launcher 12 | . . . . 6 6 Special Weapon . | . . . . . . Impact Weapon 4 | . . . . 1 3 Slashing Weapon . | . . . . . . Piercing Weapon . | . . . . . . Special Melee Weapon . | . . . . . . Unidentified Prototypes 6 | . . 1 . 5 . Corrupted Parts 2 | . . . . 2 . System Corruption 16 | . . . . 16 . Parts Lost 13 | . 1 3 1 6 2 Power 3 | . 1 1 . 1 . Propulsion 4 | . . 2 . 1 1 Utility 2 | . . . 1 . 1 Weapon 4 | . . . . 4 . Highest Loss Streak 5 | . 1 2 1 5 1 To Critical Strikes . | . . . . . . Average Slot Usage (%) 92 | . 94 98 98 99 51 Engine 8 | . 13 10 9 6 . Treads 11 | . . 12 18 14 . Leg 2 | . 14 4 . . 1 Wheel 2 | . 13 5 . . . Device 8 | . 6 13 8 7 . Storage 9 | . 14 11 9 7 7 Processor 10 | . 3 . 8 19 24 Hackware 12 | . . 7 13 17 17 Protection 1 | . . . 4 . . Energy Gun 11 | . . 12 24 7 . Ballistic Gun 12 | . 28 19 1 14 . Naked Turns . | . . . . . . Heaviest Build 52 | 14 30 40 45 52 27 Greatest Support 56 | 20 26 40 42 56 28 Greatest Overweight (x) 8 | . 1 3 1 1 8 Average Overweight (x) . | . . . . . 4 Largest Inventory Capacity 15 | . 15 15 15 15 15 Average Capacity 14 | . 10 15 15 15 15 Most Carried 15 | . 11 15 15 15 15 Average Carried 14 | . 7 14 14 14 14 Final Capacity 15 | 8 15 15 15 15 15 Final Carried 15 | 6 11 15 15 15 14 Class Distribution -------------------- 36% | Gunner 33% | Hacker-Gunner 16% | Hacker-Mutant 7% | Mutant Dominant Class ---------------- Mutant | -10/Materials Gunner | -9/Materials Gunner | -8/Materials Hacker-Gunner | -7/Factory Hacker-Mutant | -7/Lower Caves Resources | -11 -10 -9 -8 -7 -7 ----------- Run | Yrd Mat Mat Mat Fac Low Matter Collected 2904 | 200 227 711 214 1268 284 Remotely . | . . . . . . Salvage Created 4656 | . 290 1248 909 1676 533 Parts 257 | . 24 86 44 87 16 Haulers Intercepted 8 | . 2 3 . 3 . Recyclers Shooed 5 | . . . 3 2 . Parts Field Recycled . | . . . . . . Retrieved Matter . | . . . . . . Parts Self-Destructed 2 | . . . . . 2 Prevented . | . . . . . . Kills | -11 -10 -9 -8 -7 -7 ------- Run | Yrd Mat Mat Mat Fac Low Combat Hostiles Destroyed 97 | . 6 23 15 31 22 Guns 64 | . 6 23 15 20 . AOE 31 | . . . . 11 20 Classes Destroyed 18 | . 5 4 2 5 2 Worker 7 | . . 4 2 1 . Builder 5 | . . 1 2 2 . Tunneler 1 | . . . . 1 . Hauler 8 | . 2 3 . 3 . Recycler 6 | . . . 2 4 . Mechanic 1 | . . . . 1 . Operator 3 | . 1 1 . 1 . Watcher 8 | . 1 5 1 1 . Swarmer 21 | . 3 6 3 4 5 Grunt 44 | . 3 10 8 15 8 Brawler 4 | . . 1 1 1 1 Duelist 3 | . . . 1 1 1 Protector 1 | . . . . 1 . Sentry 13 | . . 6 2 3 2 Hunter 4 | . . . . 2 2 Programmer 4 | . . . . 4 . Samaritan 1 | . . . . . 1 Thief 3 | . . . . . 3 Best Kill Streak 10 | . 3 5 4 7 10 Combat Bots Only 10 | . 3 3 3 6 10 Max Kills in Single Turn 7 | . 1 2 2 5 7 Gunslinging 1 | . . 1 1 . . Exploded 7 | . . . . 4 7 Melee . | . . . . . . Uniques/NPCs Destroyed . | . . . . . . Combat | -11 -10 -9 -8 -7 -7 -------- Run | Yrd Mat Mat Mat Fac Low Hostile Shots Fired 440 | . 38 87 67 190 58 Missed 141 | . 11 19 22 69 20 Damage Taken 4612 | . 239 1109 672 1762 830 Core 1152 | . 63 185 198 218 488 Absorbed by Shields . | . . . . . . Redirected to Shielding 13 | . . . 13 . . Regen/Repaired (Parts) 480 | . . 162 254 64 . Core Remaining (%) 72 | 100 74 53 64 . . Volleys Fired 244 | . 27 76 52 75 14 Largest 3 | . 2 3 3 3 1 Hottest 168 | . 40 168 168 168 45 Shots Fired 655 | . 54 220 158 209 14 Gun 630 | . 54 220 158 198 . Cannon . | . . . . . . Launcher 25 | . . . . 11 14 Special . | . . . . . . Kinetic 283 | . 54 96 . 133 . Thermal 347 | . . 124 158 65 . Explosive 25 | . . . . 11 14 Electromagnetic . | . . . . . . Robot Hit Streak 26 | . 11 10 11 26 6 Robot Miss Streak 7 | . 3 7 3 3 5 Penetration Max . | . . . . . . Secondary Targets 8 | . 1 2 3 2 . Max Gunslinging Chain 1 | . 1 1 1 1 . Shots Hit Robots 424 | . 36 124 90 156 18 Core Hits 279 | . 15 52 37 114 61 Critical Kills 1 | . 1 . . . . Critical Parts Destroyed 4 | . . . . 1 3 Critical Strikes 25 | . 1 5 7 9 3 Burn 20 | . . 5 7 8 . Destroy 2 | . 1 . . 1 . Smash 3 | . . . . . 3 Melee Attacks 5 | . . . . . 5 Impact 5 | . . . . . 5 Slashing . | . . . . . . Piercing . | . . . . . . Sneak Attacks 1 | . . . . . 1 Combat Hostiles . | . . . . . . Follow-up Attacks . | . . . . . . Damage Inflicted 11114 | . 454 2134 1644 4415 2467 Guns 6899 | . 454 2048 1613 2784 . Cannons . | . . . . . . Explosions 3856 | . . 45 . 1606 2205 Melee 262 | . . . . . 262 Ramming 97 | . . 41 31 25 . Kinetic 3277 | . 454 853 . 1970 . Thermal 3622 | . . 1195 1613 814 . Explosive 3811 | . . . . 1606 2205 Electromagnetic 45 | . . 45 . . . Impact 262 | . . . . . 262 Slashing . | . . . . . . Piercing . | . . . . . . Highest Corruption 18 | . . 2 2 16 18 Average Corruption 5 | . . 2 2 12 17 Corruption Purged . | . . . . . . Corruption Blocked . | . . . . . . Effects 66 | . . 20 9 2 35 Message Errors 19 | . . 6 3 . 10 Matter Fused 11 | . . 2 1 1 7 Heat Flow Errors 7 | . . 4 . . 3 Energy Discharges 9 | . . 3 2 . 4 Parts Rejected 1 | . . 1 . . . Parts Fused 1 | . . 1 . . . Data Loss (minor) 9 | . . 2 1 . 6 Data Loss (major) 4 | . . . . 1 3 Misfires 3 | . . 1 2 . . Alerts 2 | . . . . . 2 Overload Shots . | . . . . . . Overflow Damage 297 | . . 24 . 1 272 Projectiles . | . . . . . . Explosions 67 | . . 24 . 1 42 Melee 230 | . . . . . 230 Knockbacks 1 | . . 1 . . . Impact 1 | . . 1 . . . Kinetic . | . . . . . . Secondary . | . . . . . . Self-Inflicted Damage 611 | . . 347 . 28 236 Shots 17 | . . 6 . 1 10 Rammed 17 | . . 6 3 8 . Targets Rammed 19 | . . 7 3 9 . Kicked . | . . . . . . Crushed 2 | . . 1 . 1 . Highest Temperature 432 | . 5 432 221 117 227 Average Temperature 71 | . 5 102 59 26 113 Received Heat Transfer 1128 | . 54 237 360 411 66 Effects 1 | . . 1 . . . Energy Bleed 1 | . . 1 . . . Siege Activations . | . . . . . . Robots Corrupted 2 | . . . . . 2 Combat Hostiles 2 | . . . . . 2 Parts Fried 3 | . . 1 . . 2 Impact Corruptions 11 | . . . . . 11 Robots Melted . | . . . . . . Combat Hostiles . | . . . . . . Parts Melted 20 | . . 4 10 6 . Heat Transferred 9398 | . . 2997 4033 2368 . Parts Sabotaged . | . . . . . . Parts Stolen 1 | . . . . . 1 Parts Stripped . | . . . . . . Power Chain Reactions 1 | . . 1 . . . Alert | -11 -10 -9 -8 -7 -7 ------- Run | Yrd Mat Mat Mat Fac Low Peak Influence 696 | . 219 440 338 696 . Initial 152 | . . 92 152 15 . Average 249 | . 134 309 178 249 . Maximum Alert Level 2 | . 1 2 1 2 . Low Security (%) 42 | . 79 17 62 52 . Level 1 48 | . 20 76 37 28 . Level 2 8 | . . 5 . 18 . Level 3 . | . . . . . . Level 4 . | . . . . . . Level 5 . | . . . . . . High Security . | . . . . . . Max Security . | . . . . . . Squads Dispatched 13 | . 1 3 . 9 . Investigation 3 | . 1 . . 2 . Extermination 3 | . . . . 3 . Reinforcement 6 | . . 3 . 3 . Assault 1 | . . . . 1 . Garrison . | . . . . . . Intercept . | . . . . . . Searches Triggered . | . . . . . . Construction Impeded . | . . . . . . Haulers Reinforced 2 | . . . . 2 . Active Scanning Responses . | . . . . . . Cargo Convoy Interrupts 1 | . . . . 1 . Stealth | -11 -10 -9 -8 -7 -7 --------- Run | Yrd Mat Mat Mat Fac Low Distress Signals 5 | . 1 1 2 1 . Communications Jammed 30 | . . . . 30 . Distress Signals 28 | . . . . 28 . Times Spotted 128 | . 9 33 22 42 22 Peak Tracking Total 9 | . 3 4 5 6 9 Tactical Retreats 5 | . . 3 1 1 . Traps | -11 -10 -9 -8 -7 -7 ------- Run | Yrd Mat Mat Mat Fac Low Traps Triggered 5 | . . 2 1 2 . Indirectly . | . . . . . . Trap Hack Attempts . | . . . . . . Triggered . | . . . . . . Disarmed . | . . . . . . Reprogrammed 7 | . . 7 . . . Reused 3 | . . 3 . . . Traps Extracted . | . . . . . . Installed . | . . . . . . Triggered 6 | . . 3 . 3 . Machines | -11 -10 -9 -8 -7 -7 ---------- Run | Yrd Mat Mat Mat Fac Low Machines Disabled 12 | . . 5 3 4 . Max in Single Turn 5 | . . 5 1 2 . Garrison Access 1 | . . . . 1 . Machines Repaired . | . . . . . . Machines Dismantled . | . . . . . . Machines Sabotaged . | . . . . . . Overloaded Fab Kills . | . . . . . . Hacking | -11 -10 -9 -8 -7 -7 --------- Run | Yrd Mat Mat Mat Fac Low Machines Accessed 31 | . 5 11 9 6 . Terminals 21 | . 5 9 5 2 . Fabricators . | . . . . . . Repair Stations 5 | . . 2 2 1 . Recycling Units 3 | . . . 1 2 . Scanalyzers . | . . . . . . Garrison Access 2 | . . . 1 1 . Total Hacks 120 | . 22 40 40 18 . Successful 78 | . 11 22 33 12 . Failed 41 | . 11 17 7 6 . Catastrophic 6 | . . 6 . . . Database Lockouts 1 | . . 1 . . . Manual 55 | . 13 20 16 6 . Terminals 82 | . 22 33 22 5 . Fabricators . | . . . . . . Repair Stations 25 | . . 7 13 5 . Recycling Units 9 | . . . 3 6 . Scanalyzers . | . . . . . . Garrison Access 4 | . . . 2 2 . Terminal Hacks 33 | . 6 13 11 3 . Robot Analysis 4 | . 2 1 1 . . Prototype ID Bank 4 | . 1 3 . . . Branch Access Points 1 | . . . 1 . . Emergency Access Points 1 | . . 1 . . . Terminal Index 2 | . 1 . 1 . . Repair Station Index 2 | . . 1 1 . . Alert Level 4 | . . 2 2 . . Unreport Threat 5 | . . 1 4 . . Locate Traps 3 | . 1 2 . . . Reprogram Traps 2 | . . 2 . . . Transport Status 2 | . 1 . . 1 . Hauler Manifests 1 | . . . . 1 . Zone Layout 2 | . . . 1 1 . Fabricator Hacks . | . . . . . . Repair Station Hacks 20 | . . 6 12 2 . Scan Component 10 | . . 3 6 1 . Repair 10 | . . 3 6 1 . Recycling Unit Hacks 8 | . . . 3 5 . Process 2 | . . . 1 1 . Report Inventory 3 | . . . 1 2 . Retrieve Matter 2 | . . . 1 1 . Retrieve Components 1 | . . . . 1 . Scanalyzer . | . . . . . . Garrison Access Hacks 1 | . . . . 1 . Seal Access 1 | . . . . 1 . Unauthorized Hacks 16 | . 5 3 7 1 . Terminals 14 | . 5 3 6 . . Track 1 | . . . 1 . . Botnet 12 | . 4 3 5 . . Operators 1 | . 1 . . . . Fabricators . | . . . . . . Repair Stations 1 | . . . . 1 . Patch 1 | . . . . 1 . Recycling Units . | . . . . . . Scanalyzers . | . . . . . . Garrison Access 1 | . . . 1 . . Broadcast 1 | . . . 1 . . Data Cores Recovered 1 | . 1 . . . . Used . | . . . . . . Hacking Detections 30 | . 5 11 9 5 . Full Trace Events 10 | . 2 7 . 1 . Feedback Events . | . . . . . . Feedback Blocked . | . . . . . . Robot Schematics Acquired . | . . . . . . Robots Built . | . . . . . . Authchips . | . . . . . . Time . | . . . . . . Total Robot Build Rating . | . . . . . . Part Schematics Acquired . | . . . . . . Parts Built . | . . . . . . Authchips . | . . . . . . Time . | . . . . . . Total Part Build Rating . | . . . . . . Parts Repaired 10 | . . 3 6 1 . Time 408 | . . 128 255 25 . Parts Recycled . | . . . . . . Recycled Matter 581 | . . . 219 362 . Retrieved Matter 852 | . . . 365 487 . Retrieved Components 1 | . . . . 1 . Parts Scanalyzed . | . . . . . . Part Schematics Acquired . | . . . . . . Parts Damaged . | . . . . . . Bothacking | -11 -10 -9 -8 -7 -7 ------------ Run | Yrd Mat Mat Mat Fac Low Used RIF Installer . | . . . . . . Robots Hacked . | . . . . . . Non-combat . | . . . . . . Combat . | . . . . . . Robot Hacks Applied . | . . . . . . Relay Couplers Released 6 | . . . . 6 . Programmers 6 | . . . . 6 . Fabnet Peak Effective % . | . . . . . . Robots Rewired 2 | . . . . . 2 Allies Hacked . | . . . . . . Hacks Repelled . | . . . . . . Allies | -11 -10 -9 -8 -7 -7 -------- Run | Yrd Mat Mat Mat Fac Low Total Allies 2 | . . . . . 2 Largest Group 2 | . . . . . 2 Highest-Rated Group 60 | . . . . . 60 Highest-Rated Ally 30 | . . . . . 30 Total Orders . | . . . . . . Ally Attacks 3 | . . . . . 3 Total Damage 74 | . . . . . 74 Kills . | . . . . . . Allies Corrupted . | . . . . . . Allies Melted . | . . . . . . Intel | -11 -10 -9 -8 -7 -7 ------- Run | Yrd Mat Mat Mat Fac Low Robot Analysis Total 4 | . 2 1 1 . . Derelict Logs Recovered 1 | . . . . . 1 Drone Launches . | . . . . . . Drone Recoveries . | . . . . . . Exploration | -11 -10 -9 -8 -7 -7 ------------- Run | Yrd Mat Mat Mat Fac Low Turns Passed 6486 | . 357 2173 1291 1777 888 Spaces Moved 2948 | 1 232 1158 475 808 274 Core 179 | . . . . . 179 Treads 1940 | . . 626 475 808 31 Legs 338 | 1 98 175 . . 64 Wheels 491 | . 134 357 . . . Hover . | . . . . . . Flight . | . . . . . . Fastest Speed 90 | 120 90 100 152 152 160 Average Speed 165 | 120 109 148 169 160 292 Slowest Speed 450 | 120 120 330 240 240 450 Overloaded Moves . | . . . . . . Propulsion Burnouts . | . . . . . . Robots Hopped . | . . . . . . Cave-ins Triggered . | . . . . . . Exploration Rate (%) 38 | 2 30 76 38 24 60 Regions Visited 5 Branch Regions 1 Pre-discovered Areas . | . . . . . . Known Exits Taken . | . . . . . . Unknown Exits Taken 5 | 1 1 1 1 1 . Scrap Searched 1 | . . . . . 1 Spaces Dug 56 | . . . . 32 24 Terrain Destroyed 514 | . . 30 . 231 253 Melee . | . . . . . . Projectile . | . . . . . . AOE 514 | . . 30 . 231 253 Terrain Rammed . | . . . . . . Walls Destroyed . | . . . . . . Machines Disabled . | . . . . . . Actions | -11 -10 -9 -8 -7 -7 --------- Run | Yrd Mat Mat Mat Fac Low Total 4024 | . 281 1455 847 1114 327 Wait 534 | . 1 127 270 129 7 Move 2943 | . 231 1157 474 807 274 Hop . | . . . . . . Pick Up 62 | . 9 22 12 19 . Fast Attach 34 | . 3 12 7 10 2 Attach 18 | . 2 1 4 3 8 Detach 11 | . 1 1 . 2 7 Swap 74 | . 2 23 10 38 1 Drop 71 | . 5 29 15 22 . Fire 244 | . 27 76 52 75 14 Melee 5 | . . . . . 5 Ram . | . . . . . . Kick . | . . . . . . Crush 19 | . . 7 3 9 . Escape Stasis . | . . . . . . Rewire 9 | . . . . . 9 Trap . | . . . . . . Miscellaneous . | . . . . . . Route ------- -11/Scrapyard -10/Materials -9/Materials -8/Materials -7/Factory -7/Lower Caves History --------- Turn | Location | Event 1 | -11/Scrapyard | Discovered new exit (range 0) 1 | -11/Scrapyard | Entered Materials 165 | -10/Materials | Discovered new exit (range 15) 314 | -10/Materials | Build established: Mutant 358 | -10/Materials | Entered another Materials area 358 | -9/Materials | Evolved 2 slots: Utility x1, Weapon x1 770 | -9/Materials | Repaired Lgt. Armor Plating 989 | -9/Materials | Build established: Gunner 1337 | -9/Materials | Discovered new exit (range 7) 1691 | -9/Materials | Repaired Imp. Medium Laser 1743 | -9/Materials | Repaired Imp. Medium Laser 2449 | -9/Materials | Central database locked down 2531 | -9/Materials | Entered another Materials area 2531 | -8/Materials | Evolved 2 slots: Utility x2 3015 | -8/Materials | Repaired Deuterium Engine 3048 | -8/Materials | Repaired Cooling System 3139 | -8/Materials | Discovered new exit (range 5) 3346 | -8/Materials | Repaired Imp. Medium Laser 3400 | -8/Materials | Repaired Imp. Medium Laser 3451 | -8/Materials | Repaired Imp. Medium Laser 3485 | -8/Materials | Repaired Autogun 3766 | -8/Materials | Build established: Hacker-Gunner 3822 | -8/Materials | Entered Factory 3822 | -7/Factory | Evolved 2 slots: Utility x2 3885 | -7/Factory | Repaired Imp. Medium Laser 3949 | -7/Factory | Found Prototype Launcher 3949 | -7/Factory | Identified Rocket Array 3955 | -7/Factory | Found Rocket Array 3957 | -7/Factory | Found Rocket Array 5183 | -7/Factory | Cargo convoy interrupted 5422 | -7/Factory | First assault squad dispatched 5518 | -7/Factory | Discovered new exit (range 14) 5567 | -7/Factory | System corruption reached 10% 5599 | -7/Factory | Entered Lower Caves 5613 | -7/Lower Caves | Lost 5 parts (1p1n3w) 5852 | -7/Lower Caves | Core integrity fell below 50% 5875 | -7/Lower Caves | Build established: Hacker-Mutant 5980 | -7/Lower Caves | Attracted the attention of an 0b10 outpost 6018 | -7/Lower Caves | Destroyed 10 combat bots 6301 | -7/Lower Caves | Attracted the attention of an 0b10 checkpoint 6301 | -7/Lower Caves | Core integrity fell below 20% 6481 | -7/Lower Caves | Spotted B-75 Beast 6487 | -7/Lower Caves | Destroyed by B-75 Beast with Magnetic Acceleration Cannon Last Messages --------------- 06337_ Acquired 29 matter. 06344_ Acquired 46 matter. 06351_ Acquired Carbon-fiber Leg. 06355_ Acquired Imp. Melee Analysis Suite. 06361_ System corrupted: Component data lost. 06379_ System corrupted: Matter fused (-10). 06409_ System corrupted: Heat flow error (+118). 06409_ Acquired 55 matter. 06480_ FVM2O,P%NA8 FP9<#GWH CTZUCIH=EO WL9#BXI 06480_ Destroyed Lgt. Deuterium Engine. 06480_ Destroyed Tearclaws. 06480_ Destroyed Cesium-ion Thruster. 06482_ The unstable cave ceiling collapses. 06482_ Carbon-fiber Leg ripped off. 06483_ Destroyed Cesium-ion Thruster. 06483_ HL-1FZ(f) destroyed. 06483_ FS-1ZL(f) destroyed. 06483_ Destroyed Tearclaws. 06486_ Destroyed Cesium-ion Thruster. 06486_ O9-WBN(f) destroyed. Map ----- +----------------------------------------------------+ | | | | | | | ?????????????????????????????????????????????????? | | ?????????????????????????????????????????????????? | | ?????????????????????????????????????????????????? | | ?????????????????????????????????????????????????? | | ?????????????????????????????????????????????????? | | ?????????????????????????????????????????????????? | | ?????????????????????????????????????????????????? | | ?????????????????????????????????????????????????? | | ?????????????????????????????????????????????????? | | ?????????????????????????????????????????????????? | | ?????????????????????????????????????????????????? | | ?????????????????????????????????????????????????? | | ?????????????????????????????????????????????????? | | ?????????????????????????????????????????????????? | | ?????????????#??????????????##???????????????????? | | ????????????# ###???##????# ##??????????????????? | | ???????????? ### #??? ???????????????????? | | ???????????? ??# ??????###??????????? | | ??????????? ## ??????# ##?????????? | | ??????????? ??????# # #?????????? | | ?????????? #?????# #?????? #?? | | ?????????? # % #;#### #?????? ?? | | ?????????? @ % #????????? ## | | ???????????# # #?????????? | | ??????????# ### #???????????? | | ??????????? = #?# #???????????? | | ??????????? #?# ##??????????? | | ???????????? ###?### ##??????????? | | ???????????? # ?????# # ######??????# | | ???????????? ?# ?????# # #?????## | | ?????????????### ?? ?????# ###### ####### | | ?????????????? ?? ## ?????###?????# | | ??????????????#?? BB ?##?????????????# | | ????????????????? BB ????????????????###### | | ???????????????? ?????????????????????## | | ?????????????????? ?????????????????????# | | ??????????????????????????????????? | | ??????????????????????????????????? " | | ???????????????????????????????????## ### "" | | ????????????????????????????????????#????##### "" | | ?????????????????????????????????????????????# " | | ?????????????????????????????????????????????# """ | | ?????????????????????????????????????????????# """ | | ?????????????????????????????????????????????# """ | | ?????????????????????????????????????????????# | | ?????????????????????????????????????????????# | | ?????????????????????????????????????????????##### | +----------------------------------------------------+ Best States ------------- Heat Dissipation 56 Energy Generation 21 Energy Capacity 350 Matter Stores 300 Matter Capacity 300 Sight Range 16 Robot Scan Range 14 Terrain Scan Density 10 Jamming Range 12 Armor Coverage 375 Utility Shielding 33 Evasion (%) 55 Targeting Accuracy 11 Melee Accuracy 6 Core Analysis 6 Recoil Reduction 2 Offensive Hacking 20 Defensive Hacking 10 Item Schematics ----------------- None Robot Schematics ------------------ None Fabricated ------------ Nothing Alien Tech Used ----------------- None Achievements -------------- None Challenges ------------ None Game ------ Seed MicroScanBlade Manual? 0 Play Time 00:34:12 Cumulative 831.7 hours Start 2024.08.03 @ 16:23:19 End 2024.08.03 @ 16:56:27 Sessions 1 Manual Loads 0 Difficulty Rogue Special Mode None Game No. 988 Rogue 709 Adventurer 124 Explorer 155 Win Type - Total 34 Types 27/0/5/1/0/0/0/1/0 Lore% 70 Gallery% 88 Achievement% 78 Wizard Run 0 Options --------- Layout 0 ASCII 0 Keyboard 1 Movement Numpad Keybinds 0 Fullscreen 2 Font 18/SmallcapsGlow Map View 76x50 Zoom Use 0% Tactical HUD 1 Map Filters NONE Filters NONE Steam 1 RUN: 58c5e08d-6957-47c4-855b-bbe11ffe1c9c